[Event "World Senior chT-65 2019"]
[Site "Rhodes"]
[Date "2019.04.18"]
[Round "3.18"]
[White "Thornton, John D"]
[Black "James, Geoffrey H"]
[Result "1/2-1/2"]
[ECO "C60"]
[WhiteElo "2061"]
[BlackElo "2144"]
[PlyCount "35"]
[EventDate "2019.04.16"]
[EventType "team-tourn"]
[EventCountry "GRE"]
[TimeControl "40/5400+30:1800+30"]

1. e4 {[%emt 0:00:04]} e5 {[%emt 0:00:08]} 2. Nf3 {[%emt 0:00:17]} Nc6 {[%emt 0:00:00]} 3. Bb5 {[%emt 0:00:06]} g6 {[%emt 0:00:38]} 4. O-O {[%emt 0:00:28]} Bg7 {[%emt 0:00:23]} 5. c3 {[%emt 0:01:00]} d6 {[%emt 0:01:30]} 6. d4 {[%emt 0:02:50]} Bd7 {[%emt 0:00:15]} 7. Be3 {[%emt 0:05:54]} Qe7 {[%emt 0:06:04]} 8. d5 {[%emt 0:06:02]} Nd8 {[%emt 0:05:19]} 9. Bxd7+ {[%emt 0:09:00]} Qxd7 {[%emt 0:00:10]} 10. c4 {[%emt 0:00:11]} Nf6 {[%emt 0:01:56]} 11. Nc3 {[%emt 0:00:34]} Ng4 {[%emt 0:05:12]} 12. Bd2 {[%emt 0:07:33]} f5 {[%emt 0:01:31]} 13. Ne1 {[%emt 0:04:49]} O-O {[%emt 0:02:55]} 14. f3 {[%emt 0:01:40]} Nf6 {[%emt 0:00:56]} 15. Bg5 {[%emt 0:02:03]} Nf7 {[%emt 0:02:59]} 16. Bxf6 {[%emt 0:00:34]} Bxf6 {[%emt 0:00:08]} 17. Nd3 {[%emt 0:02:01]} f4 {[%emt 0:05:38]} 18. b4 {[%emt 0:09:02]} 1/2-1/2

[Event "World Senior chT-65 2019"]
[Site "Rhodes"]
[Date "2019.04.18"]
[Round "3.19"]
[White "Stokes, Michael"]
[Black "Bevan, Peter M"]
[Result "1-0"]
[ECO "B01"]
[WhiteElo "2092"]
[BlackElo "1920"]
[PlyCount "43"]
[EventDate "2019.04.16"]
[EventType "team-tourn"]
[EventCountry "GRE"]
[TimeControl "40/5400+30:1800+30"]

1. e4 {[%emt 0:00:00]} d5 {[%emt 0:00:00]} 2. exd5 {[%emt 0:00:00]} Qxd5 {[%emt 0:00:00]} 3. Nc3 {[%emt 0:00:00]} Qd8 {[%emt 0:00:00]} 4. d4 {[%emt 0:00:00]} Nf6 {[%emt 0:00:06]} 5. Nf3 {[%emt 0:00:27]} Bf5 {[%emt 0:01:22]} 6. Bf4 {[%emt 0:01:57]} c6 {[%emt 0:01:15]} 7. Bd3 {[%emt 0:01:15]} Bxd3 {[%emt 0:00:32]} 8. Qxd3 {[%emt 0:00:07]} e6 {[%emt 0:00:10]} 9. O-O {[%emt 0:01:02]} Be7 {[%emt 0:00:42]} 10. Rad1 {[%emt 0:01:05]} O-O {[%emt 0:01:21]} 11. Rfe1 {[%emt 0:01:32]} Nbd7 {[%emt 0:03:34]} 12. a3 {[%emt 0:12:43]} Nd5 {[%emt 0:14:18]} 13. Be3 {[%emt 0:03:36]} Qc7 {[%emt 0:06:45]} 14. Ne4 {[%emt 0:12:23]} Nxe3 {[%emt 0:00:48]} 15. Rxe3 {[%emt 0:01:53]} Nf6 {[%emt 0:01:07]} 16. Ne5 {[%emt 0:06:16]} Rad8 {[%emt 0:04:19]} 17. Rh3 {[%emt 0:10:16]} g6 {[%emt 0:01:10]} 18. Ng5 {[%emt 0:02:18]} c5 {[%emt 0:01:20]} 19. c3 {[%emt 0:01:55]} Qd6 {[%emt 0:08:42]} 20. f4 {[%emt 0:05:06]} Kg7 {[%emt 0:06:40]} 21. Ngxf7 {[%emt 0:03:01]} Rxf7 {[%emt 0:02:02]} 22. Rxh7+ {[%emt 0:00:27]} 1-0

[Event "World Senior chT-65 2019"]
[Site "Rhodes"]
[Date "2019.04.18"]
[Round "3.20"]
[White "Harle, Bill"]
[Black "Hewson, Brian W R"]
[Result "1/2-1/2"]
[ECO "A46"]
[WhiteElo "1734"]
[BlackElo "2004"]
[PlyCount "57"]
[EventDate "2019.04.16"]
[EventType "team-tourn"]
[EventCountry "GRE"]
[TimeControl "40/5400+30:1800+30"]

1. d4 {[%emt 0:00:00]} Nf6 {[%emt 0:00:00]} 2. Nf3 {[%emt 0:00:00]} e6 {[%emt 0:01:49]} 3. g3 {[%emt 0:01:27]} d5 {[%emt 0:02:08]} 4. Bg2 {[%emt 0:00:30]} b5 {[%emt 0:00:31]} 5. O-O {[%emt 0:01:31]} Bb7 {[%emt 0:01:22]} 6. a3 {[%emt 0:02:12]} Nbd7 {[%emt 0:01:00]} 7. Nbd2 {[%emt 0:03:49]} c5 {[%emt 0:06:09]} 8. e3 {[%emt 0:00:34]} a5 {[%emt 0:07:11]} 9. Re1 {[%emt 0:08:03]} Be7 {[%emt 0:05:28]} 10. c3 {[%emt 0:04:10]} O-O {[%emt 0:01:42]} 11. dxc5 {[%emt 0:07:13]} Nxc5 {[%emt 0:02:53]} 12. Nb3 {[%emt 0:00:32]} Qb6 {[%emt 0:02:26]} 13. Nxc5 {[%emt 0:02:47]} Bxc5 {[%emt 0:01:17]} 14. Bd2 {[%emt 0:01:42]} Be7 {[%emt 0:06:09]} 15. Qe2 {[%emt 0:04:59]} Ne4 {[%emt 0:12:11]} 16. Ne5 {[%emt 0:10:59]} Nxd2 {[%emt 0:05:52]} 17. Qxd2 {[%emt 0:00:31]} Rfd8 {[%emt 0:00:13]} 18. Nd3 {[%emt 0:05:50]} Bf6 {[%emt 0:02:05]} 19. Rac1 {[%emt 0:02:24]} Rac8 {[%emt 0:01:42]} 20. b4 {[%emt 0:02:07]} axb4 {[%emt 0:03:20]} 21. cxb4 {[%emt 0:00:20]} Ra8 {[%emt 0:00:57]} 22. Qa2 {[%emt 0:02:30]} Ra7 {[%emt 0:01:10]} 23. Rb1 {[%emt 0:01:24]} Rda8 {[%emt 0:03:40]} 24. Rb3 {[%emt 0:00:19]} Bc6 {[%emt 0:04:37]} 25. Nc5 {[%emt 0:01:39]} Rd8 {[%emt 0:04:05]} 26. Rd3 {[%emt 0:03:03]} g6 {[%emt 0:04:28]} 27. Red1 {[%emt 0:01:54]} Rc8 {[%emt 0:03:01]} 28. Bh3 {[%emt 0:02:23]} Be8 {[%emt 0:03:06]} 29. Bg2 {[%emt 0:06:13]} 1/2-1/2

[Event "World Senior chT-65 2019"]
[Site "Rhodes"]
[Date "2019.04.18"]
[Round "3.21"]
[White "Karason, Askell O"]
[Black "Harestad, Thor Geir"]
[Result "1-0"]
[ECO "A39"]
[WhiteElo "2252"]
[BlackElo "2200"]
[PlyCount "181"]
[EventDate "2019.04.16"]
[EventType "team-tourn"]
[EventCountry "GRE"]
[TimeControl "40/5400+30:1800+30"]

1. Nf3 {[%emt 0:00:00]} Nf6 {[%emt 0:00:00]} 2. c4 {[%emt 0:00:00]} c5 {[%emt 0:00:20]} 3. Nc3 {[%emt 0:00:00]} g6 {[%emt 0:00:16]} 4. g3 {[%emt 0:00:04]} Bg7 {[%emt 0:00:12]} 5. Bg2 {[%emt 0:00:05]} O-O {[%emt 0:00:06]} 6. O-O {[%emt 0:00:04]} Nc6 {[%emt 0:00:33]} 7. d4 {[%emt 0:00:16]} cxd4 {[%emt 0:00:13]} 8. Nxd4 {[%emt 0:00:05]} Qa5 {[%emt 0:04:07]} 9. Nb3 {[%emt 0:08:12]} Qh5 {[%emt 0:03:43]} 10. c5 {[%emt 0:17:07] A39: Symmetrical English vs ...g6: 4 Bg2 Bg7 5 Nf3 Nf6 6 0-0 0-0 7 d4} a5 {[%emt 0:13:06]} 11. a4 {[%emt 0:04:45]} (11. Na4 d6 12. Nb6 Ra6 13. Nxc8 Rxc8 14. cxd6 exd6 15. a4 Rb6 16. h3 Qe5 17. Be3 Ra6 {0-1 (50) Nyzhnyk,I (2638)-So,W (2762) chess.com INT 2019}) 11... Rb8 $146 {[%emt 0:09:52]} ({Predecessor:} 11... d5 12. cxd6 Rd8 13. Nb5 exd6 14. Nc7 Rb8 15. e4 Bg4 16. f3 Bh3 17. g4 Qh4 {0-1 (53) Erigaisi,A (2481)-Safarli,E (2653) Sharjah 2018}) 12. e4 {[%emt 0:20:37]} Qxd1 {[%emt 0:06:23]} 13. Rxd1 {[%emt 0:00:02]} b6 {[%emt 0:00:23]} 14. Bf4 {[%emt 0:08:08]} e5 {[%emt 0:02:10]} 15. Be3 {[%emt 0:06:33]} bxc5 {[%emt 0:00:47]} 16. Nxc5 {[%emt 0:00:10]} Rxb2 {[%emt 0:00:33]} 17. Nb5 {[%emt 0:00:12]} Ng4 {[%emt 0:08:01]} 18. Rd2 {[%emt 0:05:07]} Rxd2 {[%emt 0:07:18]} 19. Bxd2 {[%emt 0:00:26]} Rd8 {[%emt 0:01:17]} 20. Nb3 {[%emt 0:01:15]} Bf8 {[%emt 0:04:12]} 21. h3 {[%emt 0:00:48]} Nf6 {[%emt 0:00:18]} 22. Nxa5 {[%emt 0:00:07]} Ba6 {[%emt 0:04:25]} 23. Nc7 {[%emt 0:07:54]} Bd3 {[%emt 0:03:21]} 24. Nd5 {[%emt 0:00:20]} Nxd5 {[%emt 0:01:47]} 25. exd5 {[%emt 0:00:12]} Nd4 {[%emt 0:01:41]} 26. Nb7 {[%emt 0:05:15]} Rb8 {[%emt 0:03:14]} 27. d6 {[%emt 0:00:03]} e4 {[%emt 0:02:23]} 28. Nc5 {[%emt 0:00:39]} Bxd6 {[%emt 0:05:58]} 29. Nxe4 {[%emt 0:04:42]} Nb3 {[%emt 0:04:42]} 30. Ra2 {[%emt 0:02:51]} Bxe4 {[%emt 0:05:24]} 31. Bxe4 {[%emt 0:00:27]} Nxd2 {[%emt 0:00:34]} 32. Rxd2 {[%emt 0:00:06]} Rb4 {[%emt 0:00:40]} 33. Bc2 {[%emt 0:02:15]} Bc5 {[%emt 0:03:15]} 34. Rxd7 {[%emt 0:00:34]} Rb2 {[%emt 0:00:11]} 35. Rd2 {[%emt 0:00:08]} Ra2 {[%emt 0:00:39]} 36. Kg2 {[%emt 0:00:52]} Kg7 {[%emt 0:00:22]} 37. Kf3 {[%emt 0:00:28]} f5 {[%emt 0:00:40]} 38. Ke2 {[%emt 0:01:33]} Ra3 {[%emt 0:01:27]} 39. Rd5 {[%emt 0:02:35]} Bb4 {[%emt 0:00:59]} 40. Rb5 {[%emt 0:00:00]} Bd6 {[%emt 0:00:00]} 41. Bb3 {[%emt 0:03:24]} h5 {[%emt 0:04:53]} 42. Kd3 {[%emt 0:02:01]} Ra1 {[%emt 0:00:15]} 43. Kc4 {[%emt 0:01:00]} h4 {[%emt 0:01:28]} 44. gxh4 {[%emt 0:00:05]} Rf1 {[%emt 0:00:44]} 45. a5 {[%emt 0:00:56]} Bh2 {[%emt 0:01:24]} 46. h5 {[%emt 0:19:40]} Rxf2 {[%emt 0:06:38]} 47. a6 {[%emt 0:02:42]} Rf4+ {[%emt 0:00:44]} 48. Kd5 {[%emt 0:02:03]} Bg1 {[%emt 0:02:12]} 49. Rb7+ {[%emt 0:01:13]} Kh6 {[%emt 0:00:15]} 50. hxg6 {[%emt 0:00:24]} Kxg6 {[%emt 0:00:16]} 51. a7 {[%emt 0:01:46]} Bxa7 {[%emt 0:01:08]} 52. Rxa7 {[%emt 0:00:00]} Rf3 {[%emt 0:00:25]} 53. Bc2 {[%emt 0:00:09]} Rf2 {[%emt 0:03:03]} 54. Rc7 {[%emt 0:01:23]} Kg5 {[%emt 0:00:59]} 55. Ke5 {[%emt 0:00:21]} Re2+ {[%emt 0:04:03]} 56. Kd4 {[%emt 0:00:17]} Rd2+ {[%emt 0:01:18]} 57. Bd3 {[%emt 0:00:19]} Rh2 {[%emt 0:00:18]} 58. Rh7 {[%emt 0:00:53]} Ra2 {[%emt 0:01:11]} 59. Ke3 {[%emt 0:01:09]} Ra3 {[%emt 0:00:03]} 60. Ke2 {[%emt 0:01:35]} Kf4 {[%emt 0:00:24]} 61. Rf7 {[%emt 0:00:19]} Ra2+ {[%emt 0:00:03]} 62. Kf1 {[%emt 0:00:16]} Ra1+ {[%emt 0:00:30]} 63. Kf2 {[%emt 0:00:04]} Ra2+ {[%emt 0:00:12]} 64. Be2 {[%emt 0:00:03]} Ra3 {[%emt 0:00:10]} 65. h4 {[%emt 0:00:33]} Rh3 {[%emt 0:00:03]} 66. h5 {[%emt 0:00:04]} Rh2+ {[%emt 0:00:17]} 67. Ke1 {[%emt 0:00:06]} Ke3 {[%emt 0:00:18]} 68. Re7+ {[%emt 0:00:06]} Kf4 {[%emt 0:00:02]} 69. Kd2 {[%emt 0:00:13]} Kg3 {[%emt 0:00:09]} 70. Rg7+ {[%emt 0:00:09]} Kf4 {[%emt 0:00:04]} 71. Rg6 {[%emt 0:00:38]} Ke4 {[%emt 0:00:07]} 72. Re6+ {[%emt 0:00:05]} Kf4 {[%emt 0:00:05]} 73. h6 $2 {[%emt 0:01:23]} (73. Kd3 $18 Rh3+ 74. Kd4) 73... Kg5 {[%emt 0:00:06]} 74. Ke3 {[%emt 0:00:44]} Rxh6 {[%emt 0:00:05]} 75. Re8 {[%emt 0:00:16]} Rh4 {[%emt 0:00:23]} 76. Rg8+ {[%emt 0:00:43]} Kf6 {[%emt 0:00:02]} 77. Bf3 {[%emt 0:00:49]} Ra4 {[%emt 0:00:27]} 78. Bc6 {[%emt 0:00:22]} Ra1 {[%emt 0:00:44]} 79. Bb5 {[%emt 0:00:30]} Rh1 {[%emt 0:00:56]} 80. Rd8 {[%emt 0:01:31]} Ke5 {[%emt 0:00:38]} 81. Kf3 {[%emt 0:00:44]} Rh3+ {[%emt 0:00:29]} 82. Kf2 {[%emt 0:00:15]} Rh2+ {[%emt 0:00:23]} 83. Kg3 {[%emt 0:00:06]} Rb2 {[%emt 0:00:17]} 84. Bd3 {[%emt 0:01:34]} Rb6 {[%emt 0:01:23]} 85. Kf3 {[%emt 0:00:28]} Rd6 {[%emt 0:00:55]} 86. Re8+ {[%emt 0:00:09]} Re6 {[%emt 0:00:07]} 87. Ra8 {[%emt 0:00:23]} Rd6 {[%emt 0:00:14]} 88. Bc2 {[%emt 0:00:23]} Rd5 {[%emt 0:03:04]} 89. Rf8 {[%emt 0:00:20]} Kd6 $16 {[%emt 0:00:20]} 90. Kf4 {[%emt 0:00:13]} Ke7 {[%emt 0:00:14]} 91. Rc8 {[%emt 0:00:30]} 1-0

[Event "World Senior chT-65 2019"]
[Site "Rhodes"]
[Date "2019.04.18"]
[Round "3.22"]
[White "Melkeraen, Terje"]
[Black "Gudmundsson, Kristjan"]
[Result "0-1"]
[ECO "E80"]
[WhiteElo "2006"]
[BlackElo "2268"]
[PlyCount "60"]
[EventDate "2019.04.16"]
[EventType "team-tourn"]
[EventCountry "GRE"]
[TimeControl "40/5400+30:1800+30"]

1. d4 {[%emt 0:00:00]} Nf6 {[%emt 0:05:44]} 2. c4 {[%emt 0:00:19]} g6 {[%emt 0:00:51]} 3. Nc3 {[%emt 0:00:08]} Bg7 {[%emt 0:00:05]} 4. e4 {[%emt 0:00:17]} d6 {[%emt 0:00:04]} 5. f3 {[%emt 0:00:07]} e5 {[%emt 0:00:30]} 6. d5 {[%emt 0:02:25]} Nh5 {[%emt 0:01:36]} 7. Be3 {[%emt 0:00:22]} f5 {[%emt 0:00:09]} 8. Qd2 {[%emt 0:01:09]} f4 {[%emt 0:00:10]} 9. Bf2 {[%emt 0:00:03]} Bf6 {[%emt 0:00:03]} 10. Nge2 {[%emt 0:01:16]} Bh4 {[%emt 0:00:37]} 11. g3 {[%emt 0:02:03]} Bg5 {[%emt 0:00:25]} 12. g4 {[%emt 0:04:15]} Bxg4 {[%emt 0:01:09]} 13. fxg4 {[%emt 0:00:27]} f3 {[%emt 0:00:02]} 14. Be3 {[%emt 0:00:58]} Bxe3 {[%emt 0:00:12]} 15. Qxe3 {[%emt 0:00:32]} fxe2 {[%emt 0:00:03]} 16. Nxe2 {[%emt 0:00:46]} Qh4+ {[%emt 0:01:28]} 17. Kd2 {[%emt 0:00:39]} Nf4 {[%emt 0:21:25]} 18. Qg3 {[%emt 0:05:37]} g5 {[%emt 0:10:11]} 19. Qxh4 {[%emt 0:05:49]} gxh4 {[%emt 0:00:03]} 20. Nxf4 {[%emt 0:00:13]} exf4 {[%emt 0:00:01]} 21. e5 {[%emt 0:02:31]} Nd7 {[%emt 0:08:57]} 22. e6 {[%emt 0:04:02]} Ne5 {[%emt 0:01:45]} 23. Bd3 {[%emt 0:11:13]} Ke7 {[%emt 0:01:53]} 24. b3 {[%emt 0:02:11]} Rag8 {[%emt 0:03:13]} 25. Bf5 {[%emt 0:04:05]} h5 {[%emt 0:02:22]} 26. Raf1 {[%emt 0:06:27]} hxg4 {[%emt 0:06:01]} 27. Rxf4 {[%emt 0:02:01]} g3 {[%emt 0:02:56]} 28. Bh3 {[%emt 0:02:55]} Rf8 {[%emt 0:02:16]} 29. Ke3 {[%emt 0:04:48]} Rxf4 {[%emt 0:01:33]} 30. Kxf4 {[%emt 0:00:39]} Nd3+ {[%emt 0:03:05]} 0-1

[Event "World Senior chT-65 2019"]
[Site "Rhodes"]
[Date "2019.04.18"]
[Round "3.23"]
[White "Halldorsson, Bragi"]
[Black "Johnsen, Oystein"]
[Result "0-1"]
[ECO "D15"]
[WhiteElo "2112"]
[BlackElo "1986"]
[PlyCount "110"]
[EventDate "2019.04.16"]
[EventType "team-tourn"]
[EventCountry "GRE"]
[TimeControl "40/5400+30:1800+30"]

1. d4 {[%emt 0:00:00]} d5 {[%emt 0:00:00]} 2. c4 {[%emt 0:00:00]} c6 {[%emt 0:00:00]} 3. Nc3 {[%emt 0:00:00]} Nf6 {[%emt 0:00:00]} 4. Nf3 {[%emt 0:00:18]} a6 {[%emt 0:00:21]} 5. e3 {[%emt 0:00:41]} Bf5 {[%emt 0:00:41]} 6. b3 {[%emt 0:01:40]} e6 {[%emt 0:00:53]} 7. Be2 {[%emt 0:00:55]} h6 {[%emt 0:00:33]} 8. O-O {[%emt 0:01:39]} Bd6 {[%emt 0:09:00]} 9. Ne5 {[%emt 0:00:36]} O-O {[%emt 0:02:04]} 10. f4 {[%emt 0:00:38]} Ne4 {[%emt 0:08:21]} 11. Bb2 {[%emt 0:02:32]} Nd7 {[%emt 0:02:29]} 12. Bd3 {[%emt 0:05:17]} Ndf6 {[%emt 0:12:21]} 13. c5 {[%emt 0:01:23]} Bc7 {[%emt 0:02:52]} 14. b4 {[%emt 0:01:06]} Nxc3 {[%emt 0:00:12]} 15. Bxc3 {[%emt 0:00:14]} Bxd3 {[%emt 0:00:05]} 16. Qxd3 {[%emt 0:00:17]} Ne4 {[%emt 0:00:11]} 17. a4 {[%emt 0:02:17]} Bxe5 {[%emt 0:07:10]} 18. dxe5 {[%emt 0:00:51]} f5 {[%emt 0:14:08]} 19. exf6 {[%emt 0:00:23]} Nxc3 {[%emt 0:00:11]} 20. fxg7 {[%emt 0:00:16]} Kxg7 {[%emt 0:01:55]} 21. Qxc3+ {[%emt 0:00:18]} Qf6 {[%emt 0:00:00]} 22. Qd4 {[%emt 0:02:03]} Rfe8 {[%emt 0:01:22]} 23. Ra2 {[%emt 0:05:54]} e5 {[%emt 0:01:47]} 24. Qd3 {[%emt 0:04:42]} e4 {[%emt 0:03:51]} 25. Qd1 {[%emt 0:04:50]} Rad8 {[%emt 0:03:52]} 26. Rd2 {[%emt 0:01:03]} Qc3 {[%emt 0:03:32]} 27. Qa1 {[%emt 0:04:37]} d4 {[%emt 0:01:58]} 28. Qxc3 {[%emt 0:01:02]} dxc3 {[%emt 0:00:02]} 29. Rc2 {[%emt 0:00:51]} Rd3 {[%emt 0:02:18]} 30. Rfc1 {[%emt 0:01:40]} Rxe3 {[%emt 0:01:33]} 31. Rxc3 {[%emt 0:00:15]} Rxc3 {[%emt 0:01:29]} 32. Rxc3 {[%emt 0:00:13]} e3 {[%emt 0:00:12]} 33. Kf1 {[%emt 0:00:39]} Re4 {[%emt 0:00:19]} 34. g3 {[%emt 0:00:37]} Rxb4 {[%emt 0:01:04]} 35. Rxe3 {[%emt 0:00:12]} Kf6 {[%emt 0:00:23]} 36. Kg2 {[%emt 0:02:17]} Rxa4 {[%emt 0:00:33]} 37. Rb3 {[%emt 0:00:13]} Rc4 {[%emt 0:00:47]} 38. Rxb7 {[%emt 0:00:24]} Rxc5 {[%emt 0:00:11]} 39. g4 {[%emt 0:01:42]} a5 {[%emt 0:02:13]} 40. Ra7 {[%emt 0:00:00]} h5 {[%emt 0:00:00]} 41. g5+ {[%emt 0:08:38]} Kf5 {[%emt 0:11:36]} 42. Rf7+ {[%emt 0:09:56]} Kg6 {[%emt 0:02:55]} 43. Rd7 {[%emt 0:06:30]} a4 {[%emt 0:06:52]} 44. Ra7 {[%emt 0:00:30]} Rc4 {[%emt 0:00:23]} 45. Kf3 {[%emt 0:00:10]} Kf5 {[%emt 0:00:34]} 46. Rf7+ {[%emt 0:01:05]} Kg6 {[%emt 0:00:25]} 47. Ra7 {[%emt 0:01:36]} Kf5 {[%emt 0:00:20]} 48. Rf7+ {[%emt 0:03:46]} Kg6 {[%emt 0:00:07]} 49. Rf6+ {[%emt 0:00:41]} Kg7 {[%emt 0:00:23]} 50. Rd6 {[%emt 0:00:36]} a3 {[%emt 0:02:49]} 51. f5 {[%emt 0:00:55]} Ra4 {[%emt 0:06:23]} 52. Rd7+ {[%emt 0:00:30]} Kf8 {[%emt 0:03:20]} 53. g6 {[%emt 0:01:42]} Ke8 {[%emt 0:05:42]} 54. Rh7 {[%emt 0:00:25]} a2 {[%emt 0:02:21]} 55. f6 {[%emt 0:00:17]} a1=Q {[%emt 0:00:49]} 0-1

[Event "World Senior chT-65 2019"]
[Site "Rhodes"]
[Date "2019.04.18"]
[Round "3.24"]
[White "Bjorgvik, Jan Arne"]
[Black "Kristinsson, Jon"]
[Result "0-1"]
[ECO "C50"]
[WhiteElo "1779"]
[BlackElo "2094"]
[PlyCount "84"]
[EventDate "2019.04.16"]
[EventType "team-tourn"]
[EventCountry "GRE"]
[TimeControl "40/5400+30:1800+30"]

1. e4 {[%emt 0:00:00]} e5 {[%emt 0:00:02]} 2. Nf3 {[%emt 0:00:00]} Nc6 {[%emt 0:00:08]} 3. Bc4 {[%emt 0:00:56]} Bc5 {[%emt 0:00:17]} 4. O-O {[%emt 0:01:22]} Nf6 {[%emt 0:00:09]} 5. Nc3 {[%emt 0:01:00]} d6 {[%emt 0:00:29]} 6. h3 {[%emt 0:00:47]} O-O {[%emt 0:00:41]} 7. d3 {[%emt 0:01:02]} Be6 {[%emt 0:00:28]} 8. Bg5 {[%emt 0:05:03]} h6 {[%emt 0:00:36]} 9. Bh4 {[%emt 0:04:51]} Nd4 {[%emt 0:03:03]} 10. Nxd4 {[%emt 0:04:13]} Bxd4 {[%emt 0:00:21]} 11. Qf3 {[%emt 0:06:47]} g5 {[%emt 0:06:07]} 12. Bg3 {[%emt 0:00:37]} Bxc4 {[%emt 0:00:22]} 13. dxc4 {[%emt 0:00:30]} Bxc3 {[%emt 0:00:17]} 14. bxc3 {[%emt 0:00:55]} Qe7 {[%emt 0:01:10]} 15. h4 {[%emt 0:01:54]} Qe6 {[%emt 0:00:27]} 16. Qd3 {[%emt 0:05:31]} Qg4 {[%emt 0:04:31]} 17. Qf3 {[%emt 0:03:01]} Qxf3 {[%emt 0:01:00]} 18. gxf3 {[%emt 0:00:19]} Nd7 {[%emt 0:00:43]} 19. Rab1 {[%emt 0:02:08]} b6 {[%emt 0:00:13]} 20. a4 {[%emt 0:01:27]} a5 {[%emt 0:00:11]} 21. Rb3 {[%emt 0:02:38]} Nc5 {[%emt 0:00:41]} 22. Ra3 {[%emt 0:00:24]} f5 {[%emt 0:00:21]} 23. hxg5 {[%emt 0:05:29]} hxg5 {[%emt 0:00:04]} 24. Re1 {[%emt 0:00:53]} f4 {[%emt 0:01:33]} 25. Bh2 {[%emt 0:00:17]} Kg7 {[%emt 0:00:26]} 26. Kg2 {[%emt 0:01:36]} Rh8 {[%emt 0:00:37]} 27. Bg1 {[%emt 0:06:49]} Rh4 {[%emt 0:01:30]} 28. Kf1 {[%emt 0:02:11]} Kf6 {[%emt 0:00:22]} 29. Raa1 {[%emt 0:03:48]} Rg8 {[%emt 0:06:49]} 30. Ke2 {[%emt 0:05:15]} Rh1 {[%emt 0:00:37]} 31. Rf1 {[%emt 0:03:41]} Rgh8 {[%emt 0:01:42]} 32. Rfe1 {[%emt 0:01:48]} R8h3 {[%emt 0:00:22]} 33. Ra3 {[%emt 0:02:06]} Kg6 {[%emt 0:02:57]} 34. Rd1 {[%emt 0:04:29]} g4 {[%emt 0:03:44]} 35. fxg4 {[%emt 0:00:33]} Nxe4 {[%emt 0:00:18]} 36. Rd3 {[%emt 0:05:07]} Ng5 {[%emt 0:01:25]} 37. Kf1 {[%emt 0:05:53]} Nf3 {[%emt 0:02:12]} 38. Rxf3 {[%emt 0:00:37]} Rxf3 {[%emt 0:00:02]} 39. Kg2 {[%emt 0:00:48]} Rhh3 {[%emt 0:00:09]} 40. c5 {[%emt 0:00:00]} Rxc3 {[%emt 0:00:00]} 41. Rxc3 {[%emt 0:05:19]} Rxc3 {[%emt 0:01:04]} 42. cxb6 {[%emt 0:00:23]} cxb6 {[%emt 0:00:03]} 0-1

[Event "World Senior chT-65 2019"]
[Site "Rhodes"]
[Date "2019.04.18"]
[Round "3.25"]
[White "Rooze, Jan"]
[Black "Boehnisch, Manfred"]
[Result "1/2-1/2"]
[ECO "A11"]
[WhiteElo "2261"]
[BlackElo "2287"]
[PlyCount "49"]
[EventDate "2019.04.16"]
[EventType "team-tourn"]
[EventCountry "GRE"]
[TimeControl "40/5400+30:1800+30"]

1. Nf3 {[%emt 0:00:00]} d5 {[%emt 0:00:00]} 2. c4 {[%emt 0:00:00]} c6 {[%emt 0:00:00]} 3. e3 {[%emt 0:00:00]} Nf6 {[%emt 0:00:17]} 4. Nc3 {[%emt 0:00:00]} Bg4 {[%emt 0:00:20]} 5. Qb3 {[%emt 0:02:32]} Qb6 {[%emt 0:00:39]} 6. cxd5 {[%emt 0:01:11]} Qxb3 {[%emt 0:04:42]} 7. axb3 {[%emt 0:00:06]} Bxf3 {[%emt 0:00:14]} 8. gxf3 {[%emt 0:00:18]} Nxd5 {[%emt 0:00:14]} 9. Nxd5 {[%emt 0:02:14]} cxd5 {[%emt 0:00:11]} 10. d4 {[%emt 0:20:36]} e6 {[%emt 0:01:41]} 11. Bd2 {[%emt 0:00:55]} Nc6 {[%emt 0:01:45]} 12. Ra4 {[%emt 0:09:28]} Bd6 {[%emt 0:13:29]} 13. b4 {[%emt 0:00:44]} Kd7 {[%emt 0:00:42]} 14. b5 {[%emt 0:00:19]} Ne7 {[%emt 0:00:16]} 15. Bd3 {[%emt 0:01:08]} b6 {[%emt 0:18:31]} 16. Ke2 {[%emt 0:00:51]} Kc7 {[%emt 0:01:44]} 17. f4 {[%emt 0:05:19]} Kb7 {[%emt 0:01:12]} 18. Rha1 {[%emt 0:03:19]} f5 {[%emt 0:11:24]} 19. f3 {[%emt 0:01:54]} Rhf8 {[%emt 0:00:24]} 20. Be1 {[%emt 0:07:48]} Rf6 {[%emt 0:03:48]} 21. Bg3 {[%emt 0:01:46]} Rf7 {[%emt 0:02:28]} 22. Kf2 {[%emt 0:09:22]} Bc7 {[%emt 0:06:06]} 23. Kg2 {[%emt 0:03:28]} Bd6 {[%emt 0:01:29]} 24. Kh1 {[%emt 0:06:30]} Rff8 {[%emt 0:00:47]} 25. Kg2 {[%emt 0:02:20]} 1/2-1/2

[Event "World Senior chT-65 2019"]
[Site "Rhodes"]
[Date "2019.04.18"]
[Round "3.26"]
[White "Beltz, Robert"]
[Black "Van de Wynkele, Herman"]
[Result "1-0"]
[ECO "A21"]
[WhiteElo "2158"]
[BlackElo "2129"]
[PlyCount "58"]
[EventDate "2019.04.16"]
[EventType "team-tourn"]
[EventCountry "GRE"]
[TimeControl "40/5400+30:1800+30"]

1. Nf3 {[%emt 0:00:00]} g6 {[%emt 0:00:00]} 2. g3 {[%emt 0:01:44]} Bg7 {[%emt 0:00:00]} 3. c4 {[%emt 0:00:47]} e5 {[%emt 0:00:48]} 4. Nc3 {[%emt 0:00:16]} f5 {[%emt 0:00:52]} 5. d3 {[%emt 0:03:45]} Ne7 {[%emt 0:01:18]} 6. Bg2 {[%emt 0:00:35]} O-O {[%emt 0:01:16]} 7. O-O {[%emt 0:00:11]} h6 {[%emt 0:00:29]} 8. Bd2 {[%emt 0:02:41]} g5 {[%emt 0:01:10]} 9. b4 {[%emt 0:14:22]} Ng6 {[%emt 0:02:50]} 10. Rb1 {[%emt 0:04:52]} Nc6 {[%emt 0:10:42]} 11. Nd5 {[%emt 0:03:26]} f4 {[%emt 0:21:41]} 12. Bc3 {[%emt 0:05:22]} g4 {[%emt 0:02:02]} 13. Nd2 {[%emt 0:01:28]} Nd4 {[%emt 0:01:11]} 14. Be4 {[%emt 0:01:12]} c6 {[%emt 0:00:56]} 15. Bxd4 {[%emt 0:05:11]} exd4 {[%emt 0:05:39]} 16. Bxg6 {[%emt 0:00:33]} cxd5 {[%emt 0:00:59]} 17. cxd5 {[%emt 0:00:29]} Qg5 {[%emt 0:04:27]} 18. Be4 {[%emt 0:00:12]} d6 {[%emt 0:00:49]} 19. Nc4 {[%emt 0:02:47]} h5 {[%emt 0:01:06]} 20. Nxd6 {[%emt 0:02:01]} h4 {[%emt 0:04:52]} 21. Bg2 {[%emt 0:05:53]} Bf5 {[%emt 0:04:41]} 22. Qd2 {[%emt 0:01:58]} Be5 {[%emt 0:01:20]} 23. Nc4 {[%emt 0:00:18]} Bd7 {[%emt 0:06:35]} 24. b5 {[%emt 0:03:31]} Qf6 {[%emt 0:02:45]} 25. Be4 {[%emt 0:01:26]} Qg7 {[%emt 0:07:35]} 26. a4 {[%emt 0:05:25]} hxg3 {[%emt 0:11:56]} 27. fxg3 {[%emt 0:00:19]} fxg3 {[%emt 0:00:24]} 28. hxg3 {[%emt 0:00:23]} Bxg3 {[%emt 0:01:34]} 29. Kg2 {[%emt 0:01:05]} Bh4 {[%emt 0:04:30]} 1-0